[Event "*** Titled Tuesday Blitz"]
[Site "Chess.com"]
[Date "2019.08.06"]
[Round "5"]
[White "stoleriu"]
[Black "Pakarma"]
[Result "1-0"]
[WhiteElo "2510"]
[BlackElo "2398"]
[TimeControl "180+2"]
[EndTime "14:06:33 PDT"]
[Termination "stoleriu won by resignation"]

1. e4 {[%clk 0:03:01.9]} 1... e5 {[%clk 0:02:59.4]} 2. Nf3 {[%clk 0:03:02.2]}
2... Nf6 {[%clk 0:03:00.4]} 3. Nxe5 {[%clk 0:03:01.9]} 3... d6 {[%clk
0:03:00.5]} 4. Nf3 {[%clk 0:03:03.3]} 4... Nxe4 {[%clk 0:03:01.7]} 5. c4 {[%clk
0:03:04.9]} 5... d5 {[%clk 0:02:59.7]} 6. Nc3 {[%clk 0:03:04.1]} 6... Nxc3
{[%clk 0:03:00.3]} 7. dxc3 {[%clk 0:03:06]} 7... dxc4 {[%clk 0:02:49.2]} 8.
Qxd8+ {[%clk 0:03:07.9]} 8... Kxd8 {[%clk 0:02:51.1]} 9. Bxc4 {[%clk 0:03:09.2]}
9... f6 {[%clk 0:02:52.1]} 10. O-O {[%clk 0:03:08.5]} 10... Bd6 {[%clk
0:02:52.3]} 11. Rd1 {[%clk 0:03:06.5]} 11... Bg4 {[%clk 0:02:17.7]} 12. Bf4
{[%clk 0:02:51.5]} 12... Kd7 {[%clk 0:02:17]} 13. Bxd6 {[%clk 0:02:17.2]} 13...
cxd6 {[%clk 0:02:08.4]} 14. Rd2 {[%clk 0:01:51.8]} 14... Bxf3 {[%clk 0:02:04.9]}
15. gxf3 {[%clk 0:01:53.7]} 15... Rd8 {[%clk 0:02:00.5]} 16. Rad1 {[%clk
0:01:53]} 16... Kc7 {[%clk 0:02:01.4]} 17. f4 {[%clk 0:01:40.8]} 17... Nc6
{[%clk 0:02:01.1]} 18. b4 {[%clk 0:01:41.8]} 18... a6 {[%clk 0:01:57.4]} 19. a4
{[%clk 0:01:40.5]} 19... g5 {[%clk 0:01:39.1]} 20. b5 {[%clk 0:01:34.8]} 20...
axb5 {[%clk 0:01:34.6]} 21. axb5 {[%clk 0:01:36.7]} 21... Na5 {[%clk 0:01:33]}
22. Bd5 {[%clk 0:01:37.5]} 22... gxf4 {[%clk 0:01:29.8]} 23. Rd4 {[%clk
0:01:38.1]} 23... Rd7 {[%clk 0:01:26.6]} 24. Rxf4 {[%clk 0:01:38.9]} 24... Rg7+
{[%clk 0:01:23.1]} 25. Kf1 {[%clk 0:01:38.9]} 25... Rf8 {[%clk 0:01:10.4]} 26.
h4 {[%clk 0:01:19.1]} 26... b6 {[%clk 0:01:04.2]} 27. Re1 {[%clk 0:01:14.9]}
27... f5 {[%clk 0:00:40.5]} 28. Re6 {[%clk 0:01:01]} 28... Rd7 {[%clk
0:00:39.6]} 29. Rh6 {[%clk 0:00:40.7]} 29... Nb7 {[%clk 0:00:36.2]} 30. Ra4
{[%clk 0:00:37.5]} 30... Na5 {[%clk 0:00:28.6]} 31. Rf4 {[%clk 0:00:32.7]} 31...
Nb7 {[%clk 0:00:26.6]} 32. Rh5 {[%clk 0:00:26.8]} 32... Nc5 {[%clk 0:00:21.3]}
33. Rhxf5 {[%clk 0:00:27.3]} 33... Rxf5 {[%clk 0:00:16.7]} 34. Rxf5 {[%clk
0:00:29.2]} 34... Re7 {[%clk 0:00:14.5]} 35. c4 {[%clk 0:00:25.2]} 35... Nd3
{[%clk 0:00:12.7]} 36. h5 {[%clk 0:00:24]} 36... Ne5 {[%clk 0:00:10.6]} 37. f4
{[%clk 0:00:21.6]} 37... Nd3 {[%clk 0:00:11.2]} 38. Kg2 {[%clk 0:00:20.8]} 38...
Kd7 {[%clk 0:00:10.1]} 39. Rf8 {[%clk 0:00:19.5]} 39... Rg7+ {[%clk 0:00:09.4]}
40. Kf3 {[%clk 0:00:20.4]} 40... Re7 {[%clk 0:00:10.6]} 41. Bc6+ {[%clk
0:00:20.1]} 41... Kc7 {[%clk 0:00:11.4]} 42. Ra8 {[%clk 0:00:18.6]} 42... Ne1+
{[%clk 0:00:06.6]} 43. Kg4 {[%clk 0:00:19.1]} 43... Rg7+ {[%clk 0:00:06.6]} 44.
Kf5 {[%clk 0:00:20.2]} 44... Rf7+ {[%clk 0:00:06.9]} 45. Kg5 {[%clk 0:00:19.6]}
45... Rg7+ {[%clk 0:00:07.6]} 46. Kf6 {[%clk 0:00:20.6]} 46... Rg4 {[%clk
0:00:08]} 47. f5 {[%clk 0:00:21.3]} 47... Rxc4 {[%clk 0:00:08.4]} 48. Ra7+
{[%clk 0:00:22.3]} 48... Kc8 {[%clk 0:00:09.5]} 49. Rxh7 {[%clk 0:00:24.2]}
49... Nd3 {[%clk 0:00:09.8]} 50. h6 {[%clk 0:00:25.5]} 50... Ne5 {[%clk
0:00:10.4]} 51. Rh8+ {[%clk 0:00:26]} 51... Kc7 {[%clk 0:00:11.1]} 52. h7 {[%clk
0:00:27.5]} 52... Rh4 {[%clk 0:00:12]} 53. Ra8 {[%clk 0:00:24.5]} 53... Nd7+
{[%clk 0:00:07.5]} 54. Bxd7 {[%clk 0:00:21.2]} 54... Rxh7 {[%clk 0:00:08.9]} 55.
Bc6 {[%clk 0:00:21.3]} 55... Rh6+ {[%clk 0:00:09.3]} 56. Kg5 {[%clk 0:00:22]}
56... Rh2 {[%clk 0:00:11.2]} 57. Ra7+ {[%clk 0:00:22.6]} 57... Kc8 {[%clk
0:00:12]} 58. Rd7 {[%clk 0:00:23.9]} 58... Rd2 {[%clk 0:00:12.1]} 59. Kf6 {[%clk
0:00:24.9]} 59... Rf2 {[%clk 0:00:12.2]} 60. Re7 {[%clk 0:00:25]} 60... Kd8
{[%clk 0:00:11.5]} 61. Re8+ {[%clk 0:00:25.2]} 61... Kc7 {[%clk 0:00:12.5]} 62.
Rf8 {[%clk 0:00:26.2]} 62... Rd2 {[%clk 0:00:11.9]} 63. Kg7 {[%clk 0:00:25.9]}
63... d5 {[%clk 0:00:13.1]} 64. f6 {[%clk 0:00:26.6]} 64... d4 {[%clk
0:00:14.4]} 65. f7 {[%clk 0:00:26.7]} 65... Rd3 {[%clk 0:00:15.9]} 66. Rc8+
{[%clk 0:00:26.3]} 66... Kxc8 {[%clk 0:00:16.3]} 67. f8=Q+ {[%clk 0:00:28.2]}
67... Kc7 {[%clk 0:00:18.2]} 68. Qe7+ {[%clk 0:00:28.8]} 1-0

[Event "*** Titled Tuesday Blitz"]
[Site "Chess.com"]
[Date "2019.08.06"]
[Round "5"]
[White "Schachspielerr"]
[Black "Bladel"]
[Result "1/2-1/2"]
[WhiteElo "2651"]
[BlackElo "2444"]
[TimeControl "180+2"]
[EndTime "14:07:50 PDT"]
[Termination "Game drawn - insufficient material"]

1. d4 {[%clk 0:03:01.9]} 1... e6 {[%clk 0:02:56.6]} 2. c4 {[%clk 0:03:02.6]}
2... b6 {[%clk 0:02:56.8]} 3. e4 {[%clk 0:03:03.3]} 3... Bb7 {[%clk 0:02:57.6]}
4. Bd3 {[%clk 0:03:05]} 4... f5 {[%clk 0:02:56.4]} 5. exf5 {[%clk 0:03:05]} 5...
Bxg2 {[%clk 0:02:58.3]} 6. Qh5+ {[%clk 0:03:05.6]} 6... g6 {[%clk 0:02:56.5]} 7.
fxg6 {[%clk 0:03:06.7]} 7... Bg7 {[%clk 0:02:56.7]} 8. gxh7+ {[%clk 0:03:04.1]}
8... Kf8 {[%clk 0:02:57.1]} 9. hxg8=Q+ {[%clk 0:03:01.7]} 9... Kxg8 {[%clk
0:02:59]} 10. Qg4 {[%clk 0:02:14.8]} 10... Bxh1 {[%clk 0:02:56]} 11. Bg5 {[%clk
0:02:16.4]} 11... Qf8 {[%clk 0:02:47.1]} 12. Nc3 {[%clk 0:02:14.2]} 12... Nc6
{[%clk 0:02:45]} 13. O-O-O {[%clk 0:01:58.4]} 13... Nxd4 {[%clk 0:02:40.5]} 14.
Be4 {[%clk 0:01:57.9]} 14... Bxe4 {[%clk 0:02:38.2]} 15. Nxe4 {[%clk 0:01:54.1]}
15... Kh7 {[%clk 0:02:27.4]} 16. Qh5+ {[%clk 0:01:28.1]} 16... Kg8 {[%clk
0:02:22.1]} 17. Qg6 {[%clk 0:01:29]} 17... Qf7 {[%clk 0:02:20.2]} 18. Nf6+
{[%clk 0:01:25.6]} 18... Kf8 {[%clk 0:02:20.5]} 19. Qxf7+ {[%clk 0:01:24.2]}
19... Kxf7 {[%clk 0:02:22.4]} 20. Rxd4 {[%clk 0:01:16.2]} 20... Kg6 {[%clk
0:02:18.5]} 21. Rxd7 {[%clk 0:00:56.4]} 21... Bxf6 {[%clk 0:02:19.1]} 22. Bf4
{[%clk 0:00:53.5]} 22... Rh4 {[%clk 0:02:13.6]} 23. Ne2 {[%clk 0:00:53.4]} 23...
Bg5 {[%clk 0:02:11.1]} 24. Bxg5 {[%clk 0:00:50.5]} 24... Kxg5 {[%clk 0:02:13]}
25. Rxc7 {[%clk 0:00:48.2]} 25... Rf8 {[%clk 0:02:13.6]} 26. Rg7+ {[%clk
0:00:46]} 26... Kh6 {[%clk 0:02:11.9]} 27. Re7 {[%clk 0:00:42.8]} 27... Rxc4+
{[%clk 0:02:10.3]} 28. Kd2 {[%clk 0:00:34.3]} 28... Rxf2 {[%clk 0:02:05.8]} 29.
Rxe6+ {[%clk 0:00:34.5]} 29... Kh5 {[%clk 0:01:57]} 30. Re7 {[%clk 0:00:33.8]}
30... Rcf4 {[%clk 0:01:53.7]} 31. Kd3 {[%clk 0:00:16.9]} 31... Rf7 {[%clk
0:01:53.2]} 32. Re5+ {[%clk 0:00:06.1]} 32... Kh4 {[%clk 0:01:50.5]} 33. Kc3
{[%clk 0:00:02.9]} 33... Kh3 {[%clk 0:01:49]} 34. Kb3 {[%clk 0:00:04.1]} 34...
a5 {[%clk 0:01:46.9]} 35. Nc3 {[%clk 0:00:05]} 35... Kxh2 {[%clk 0:01:45.4]} 36.
Re6 {[%clk 0:00:06.4]} 36... Rb7 {[%clk 0:01:38.2]} 37. a4 {[%clk 0:00:03.4]}
37... Kg1 {[%clk 0:01:36.3]} 38. Nd5 {[%clk 0:00:04.4]} 38... b5 {[%clk
0:01:34.6]} 39. axb5 {[%clk 0:00:02.2]} 39... Rxb5+ {[%clk 0:01:36.5]} 40. Kc4
{[%clk 0:00:03.7]} 40... Rbxb2 {[%clk 0:01:35.3]} 41. Ra6 {[%clk 0:00:05]} 41...
Rfc2+ {[%clk 0:01:32.2]} 42. Nc3 {[%clk 0:00:06]} 42... Rb4+ {[%clk 0:01:30.9]}
43. Kd3 {[%clk 0:00:07.2]} 43... Rg2 {[%clk 0:01:28.3]} 44. Rxa5 {[%clk
0:00:08.5]} 44... Rb3 {[%clk 0:01:27]} 45. Kc4 {[%clk 0:00:09.1]} 45... Rb8
{[%clk 0:01:27.9]} 46. Ra1+ {[%clk 0:00:10.3]} 46... Kh2 {[%clk 0:01:28.2]} 47.
Nd5 {[%clk 0:00:07.8]} 47... Rc8+ {[%clk 0:01:28.7]} 48. Kb4 {[%clk 0:00:07.9]}
48... Rg4+ {[%clk 0:01:28.3]} 49. Kb5 {[%clk 0:00:07.5]} 49... Rg5 {[%clk
0:01:28]} 50. Rd1 {[%clk 0:00:08.9]} 50... Re5 {[%clk 0:01:21.9]} 51. Kb6 {[%clk
0:00:09.9]} 51... Rd8 {[%clk 0:01:22.2]} 52. Kc6 {[%clk 0:00:10.4]} 52... Kg3
{[%clk 0:01:18.6]} 53. Rd3+ {[%clk 0:00:11.6]} 53... Kf2 {[%clk 0:01:17.9]} 54.
Nf4 {[%clk 0:00:11.8]} 54... Rf8 {[%clk 0:01:11.6]} 55. Nd5 {[%clk 0:00:09.6]}
55... Ke2 {[%clk 0:01:10]} 56. Kd6 {[%clk 0:00:07.2]} 56... Rh5 {[%clk
0:01:03.9]} 57. Rd4 {[%clk 0:00:08]} 57... Rd8+ {[%clk 0:01:03.6]} 58. Kc6
{[%clk 0:00:09.2]} 58... Ke1 {[%clk 0:00:59.6]} 59. Re4+ {[%clk 0:00:09.8]}
59... Kd2 {[%clk 0:00:59.3]} 60. Rd4+ {[%clk 0:00:11.2]} 60... Kc1 {[%clk
0:00:59.2]} 61. Rc4+ {[%clk 0:00:12.6]} 61... Kb2 {[%clk 0:01:00]} 62. Rd4
{[%clk 0:00:14]} 62... Rh6+ {[%clk 0:01:00.8]} 63. Kc5 {[%clk 0:00:14.9]} 63...
Rc8+ {[%clk 0:01:01.5]} 64. Kb5 {[%clk 0:00:15.2]} 64... Rh7 {[%clk 0:01:00.9]}
65. Nb6 {[%clk 0:00:15]} 65... Rh5+ {[%clk 0:01:00.8]} 66. Rd5 {[%clk 0:00:15]}
66... Rh4 {[%clk 0:00:59.4]} 67. Nxc8 {[%clk 0:00:15.6]} 67... Kc3 {[%clk
0:00:52.9]} 68. Nd6 {[%clk 0:00:15.9]} 68... Rd4 {[%clk 0:00:51.9]} 69. Rc5+
{[%clk 0:00:16]} 69... Kd3 {[%clk 0:00:51.8]} 70. Nf5 {[%clk 0:00:17.7]} 70...
Rf4 {[%clk 0:00:50.9]} 71. Re5 {[%clk 0:00:18.7]} 71... Re4 {[%clk 0:00:49.3]}
72. Rd5+ {[%clk 0:00:20.2]} 72... Kc3 {[%clk 0:00:49.7]} 73. Kc5 {[%clk
0:00:20.8]} 73... Rc4+ {[%clk 0:00:49.5]} 74. Kd6 {[%clk 0:00:21.3]} 74... Re4
{[%clk 0:00:50.3]} 75. Rc5+ {[%clk 0:00:22.1]} 75... Rc4 {[%clk 0:00:51.2]} 76.
Ra5 {[%clk 0:00:22]} 76... Re4 {[%clk 0:00:51.5]} 77. Kd5 {[%clk 0:00:22.7]}
77... Rg4 {[%clk 0:00:50.7]} 78. Ra1 {[%clk 0:00:23.1]} 78... Rb4 {[%clk
0:00:49.5]} 79. Rf1 {[%clk 0:00:24.3]} 79... Rb5+ {[%clk 0:00:49.4]} 80. Ke4
{[%clk 0:00:25.6]} 80... Rb4+ {[%clk 0:00:50.1]} 81. Ke3 {[%clk 0:00:27]} 81...
Kc4 {[%clk 0:00:50.6]} 82. Rc1+ {[%clk 0:00:27.4]} 82... Kd5 {[%clk 0:00:50.8]}
83. Rc3 {[%clk 0:00:27.1]} 83... Rb1 {[%clk 0:00:51.3]} 84. Ng3 {[%clk
0:00:23.7]} 84... Re1+ {[%clk 0:00:50.7]} 85. Ne2 {[%clk 0:00:25.2]} 85... Rh1
{[%clk 0:00:50.4]} 86. Ra3 {[%clk 0:00:26.7]} 86... Rh3+ {[%clk 0:00:50.3]} 87.
Kd2 {[%clk 0:00:26.7]} 87... Rxa3 {[%clk 0:00:50.4]} 88. Nc3+ {[%clk 0:00:28.3]}
88... Kc4 {[%clk 0:00:50.7]} 89. Ne2 {[%clk 0:00:29.9]} 89... Ra2+ {[%clk
0:00:51.5]} 90. Ke3 {[%clk 0:00:31.4]} 90... Ra3+ {[%clk 0:00:52.6]} 91. Kd2
{[%clk 0:00:33]} 91... Kd5 {[%clk 0:00:52.3]} 92. Nc3+ {[%clk 0:00:33.3]} 92...
Kd4 {[%clk 0:00:51.7]} 93. Nb5+ {[%clk 0:00:34.1]} 93... Kc5 {[%clk 0:00:51]}
94. Nxa3 {[%clk 0:00:36]} 1/2-1/2

[Event "*** Titled Tuesday Blitz"]
[Site "Chess.com"]
[Date "2019.08.06"]
[Round "5"]
[White "IakovUlivar"]
[Black "daro94"]
[Result "1/2-1/2"]
[WhiteElo "2522"]
[BlackElo "2681"]
[TimeControl "180+2"]
[EndTime "14:08:13 PDT"]
[Termination "Game drawn - insufficient material"]

1. e4 {[%clk 0:03:01.9]} 1... g6 {[%clk 0:02:59.7]} 2. d4 {[%clk 0:03:02.7]}
2... Bg7 {[%clk 0:03:01.2]} 3. Nf3 {[%clk 0:03:04.1]} 3... d6 {[%clk 0:03:02.7]}
4. Bd3 {[%clk 0:03:00.9]} 4... a6 {[%clk 0:03:04.1]} 5. h3 {[%clk 0:03:00.7]}
5... Nd7 {[%clk 0:03:04.1]} 6. O-O {[%clk 0:03:01.1]} 6... e5 {[%clk 0:03:04.4]}
7. c3 {[%clk 0:02:56]} 7... Ne7 {[%clk 0:03:05.7]} 8. Be3 {[%clk 0:02:34.2]}
8... O-O {[%clk 0:03:06.7]} 9. dxe5 {[%clk 0:02:20.5]} 9... dxe5 {[%clk
0:03:06.9]} 10. Qc1 {[%clk 0:02:15.4]} 10... f5 {[%clk 0:03:02.7]} 11. Bc4+
{[%clk 0:02:06.4]} 11... Kh8 {[%clk 0:03:03.8]} 12. Ng5 {[%clk 0:02:04.9]} 12...
Nf6 {[%clk 0:03:02.6]} 13. exf5 {[%clk 0:01:58.1]} 13... Qe8 {[%clk 0:02:50.9]}
14. Ne6 {[%clk 0:01:48.3]} 14... Bxe6 {[%clk 0:02:50.6]} 15. fxe6 {[%clk
0:01:47.6]} 15... Ned5 {[%clk 0:02:49.3]} 16. Bc5 {[%clk 0:01:46.4]} 16... Qxe6
{[%clk 0:02:35.2]} 17. Bxf8 {[%clk 0:01:46.3]} 17... Rxf8 {[%clk 0:02:37.1]} 18.
Nd2 {[%clk 0:01:41.8]} 18... c6 {[%clk 0:02:35.6]} 19. Nf3 {[%clk 0:01:40.2]}
19... e4 {[%clk 0:02:35.1]} 20. Nd4 {[%clk 0:01:36.9]} 20... Qe5 {[%clk
0:02:35]} 21. Bxd5 {[%clk 0:01:32.2]} 21... Nxd5 {[%clk 0:02:27]} 22. Qd1 {[%clk
0:01:28.5]} 22... h5 {[%clk 0:02:18.8]} 23. Re1 {[%clk 0:01:19.2]} 23... e3
{[%clk 0:02:08.3]} 24. Nf3 {[%clk 0:01:05.3]} 24... exf2+ {[%clk 0:01:58.8]} 25.
Kxf2 {[%clk 0:01:07.2]} 25... Qc7 {[%clk 0:01:59.5]} 26. Qe2 {[%clk 0:00:26.7]}
26... Qb6+ {[%clk 0:01:50.5]} 27. Kf1 {[%clk 0:00:27.8]} 27... Bh6 {[%clk
0:01:49]} 28. c4 {[%clk 0:00:11.9]} 28... Ne3+ {[%clk 0:01:45.8]} 29. Kg1 {[%clk
0:00:13]} 29... Nc2+ {[%clk 0:01:40.8]} 30. Qf2 {[%clk 0:00:13]} 30... Qxf2+
{[%clk 0:01:30]} 31. Kxf2 {[%clk 0:00:14.9]} 31... Nxa1 {[%clk 0:01:30.8]} 32.
Rxa1 {[%clk 0:00:16]} 32... Bg7 {[%clk 0:01:29.7]} 33. Rb1 {[%clk 0:00:16.4]}
33... Bd4+ {[%clk 0:01:18.4]} 34. Ke2 {[%clk 0:00:16.1]} 34... Re8+ {[%clk
0:01:16.9]} 35. Kd3 {[%clk 0:00:15.5]} 35... Bf6 {[%clk 0:01:17.9]} 36. b3
{[%clk 0:00:15.2]} 36... Kg7 {[%clk 0:01:18.1]} 37. Re1 {[%clk 0:00:14.9]} 37...
Rd8+ {[%clk 0:01:19.5]} 38. Kc2 {[%clk 0:00:15]} 38... a5 {[%clk 0:01:17.1]} 39.
g4 {[%clk 0:00:12.8]} 39... hxg4 {[%clk 0:01:16.4]} 40. hxg4 {[%clk 0:00:14.7]}
40... Kf7 {[%clk 0:01:16.9]} 41. Ne5+ {[%clk 0:00:10.3]} 41... Bxe5 {[%clk
0:01:16.8]} 42. Rxe5 {[%clk 0:00:12.2]} 42... a4 {[%clk 0:01:08.7]} 43. g5
{[%clk 0:00:06.7]} 43... axb3+ {[%clk 0:01:01.2]} 44. axb3 {[%clk 0:00:07.7]}
44... b6 {[%clk 0:00:35.5]} 45. b4 {[%clk 0:00:07.6]} 45... Rd4 {[%clk 0:00:35]}
46. Kc3 {[%clk 0:00:07.7]} 46... Rg4 {[%clk 0:00:36.1]} 47. b5 {[%clk 0:00:05]}
47... c5 {[%clk 0:00:35.9]} 48. Kd3 {[%clk 0:00:05.9]} 48... Rd4+ {[%clk
0:00:36.2]} 49. Kc3 {[%clk 0:00:07.2]} 49... Rf4 {[%clk 0:00:37.8]} 50. Kd3
{[%clk 0:00:07.4]} 50... Rd4+ {[%clk 0:00:32.1]} 51. Kc3 {[%clk 0:00:08.3]}
51... Rh4 {[%clk 0:00:33]} 52. Kd3 {[%clk 0:00:09.3]} 52... Rf4 {[%clk
0:00:34.2]} 53. Rd5 {[%clk 0:00:06.2]} 53... Ke6 {[%clk 0:00:34.7]} 54. Rd8
{[%clk 0:00:06.6]} 54... Ke5 {[%clk 0:00:17.8]} 55. Rd5+ {[%clk 0:00:06.4]}
55... Ke6 {[%clk 0:00:18.4]} 56. Rd8 {[%clk 0:00:08.3]} 56... Rg4 {[%clk
0:00:11.6]} 57. Rb8 {[%clk 0:00:08.4]} 57... Rxg5 {[%clk 0:00:10.8]} 58. Rxb6+
{[%clk 0:00:09.7]} 58... Ke5 {[%clk 0:00:12.4]} 59. Rb8 {[%clk 0:00:05]} 59...
Rg3+ {[%clk 0:00:13.6]} 60. Kc2 {[%clk 0:00:05.4]} 60... Kd4 {[%clk 0:00:15.5]}
61. b6 {[%clk 0:00:06.5]} 61... Kxc4 {[%clk 0:00:15.1]} 62. b7 {[%clk 0:00:08]}
62... Rb3 {[%clk 0:00:14.2]} 63. Rg8 {[%clk 0:00:07.9]} 63... Rxb7 {[%clk
0:00:14.9]} 64. Rxg6 {[%clk 0:00:09.3]} 64... Rf7 {[%clk 0:00:12.1]} 65. Rg4+
{[%clk 0:00:10.2]} 65... Kb5 {[%clk 0:00:13.5]} 66. Rh4 {[%clk 0:00:11.5]} 66...
Rf2+ {[%clk 0:00:14.3]} 67. Kc3 {[%clk 0:00:12.4]} 67... Rf3+ {[%clk 0:00:15.9]}
68. Kc2 {[%clk 0:00:13.8]} 68... Re3 {[%clk 0:00:17.3]} 69. Rg4 {[%clk
0:00:14.7]} 69... Rh3 {[%clk 0:00:18]} 70. Rf4 {[%clk 0:00:15.9]} 70... Rh2+
{[%clk 0:00:17.5]} 71. Kc3 {[%clk 0:00:16.8]} 71... Rh1 {[%clk 0:00:19.4]} 72.
Rg4 {[%clk 0:00:17.3]} 72... Rc1+ {[%clk 0:00:20.4]} 73. Kb3 {[%clk 0:00:17.2]}
73... Rb1+ {[%clk 0:00:18.7]} 74. Kc2 {[%clk 0:00:17.8]} 74... Ra1 {[%clk
0:00:16.3]} 75. Kb2 {[%clk 0:00:18.5]} 75... Re1 {[%clk 0:00:15.7]} 76. Kc3
{[%clk 0:00:18.6]} 76... Rd1 {[%clk 0:00:16.2]} 77. Kc2 {[%clk 0:00:19.4]} 77...
Rh1 {[%clk 0:00:16.2]} 78. Kc3 {[%clk 0:00:20]} 78... Rc1+ {[%clk 0:00:16.6]}
79. Kb2 {[%clk 0:00:20.9]} 79... Rd1 {[%clk 0:00:16.4]} 80. Kc2 {[%clk 0:00:22]}
80... Rd8 {[%clk 0:00:17.9]} 81. Kc3 {[%clk 0:00:22.8]} 81... Rd5 {[%clk
0:00:18.6]} 82. Rh4 {[%clk 0:00:22.8]} 82... Rd6 {[%clk 0:00:19.9]} 83. Rh8
{[%clk 0:00:22.4]} 83... Kc6 {[%clk 0:00:17.4]} 84. Rc8+ {[%clk 0:00:22]} 84...
Kd5 {[%clk 0:00:18.6]} 85. Rh8 {[%clk 0:00:23.5]} 85... Rf6 {[%clk 0:00:13.9]}
86. Rh5+ {[%clk 0:00:21.5]} 86... Kc6 {[%clk 0:00:14.6]} 87. Rh8 {[%clk
0:00:21.9]} 87... Rf3+ {[%clk 0:00:15.4]} 88. Kc4 {[%clk 0:00:22.6]} 88... Rf4+
{[%clk 0:00:17.3]} 89. Kc3 {[%clk 0:00:24.1]} 89... Rf3+ {[%clk 0:00:13.1]} 90.
Kc4 {[%clk 0:00:24.9]} 90... Rf4+ {[%clk 0:00:14.1]} 91. Kc3 {[%clk 0:00:26.2]}
91... Kd5 {[%clk 0:00:08.1]} 92. Rd8+ {[%clk 0:00:25.3]} 92... Ke4 {[%clk
0:00:08.1]} 93. Kc4 {[%clk 0:00:24.9]} 93... Rf5 {[%clk 0:00:09.5]} 94. Re8+
{[%clk 0:00:24.1]} 94... Kf4 {[%clk 0:00:09.8]} 95. Rc8 {[%clk 0:00:24.7]} 95...
Ke4 {[%clk 0:00:09.8]} 96. Rxc5 {[%clk 0:00:25.6]} 96... Rxc5+ {[%clk 0:00:11]}
97. Kxc5 {[%clk 0:00:27.5]} 1/2-1/2

[Event "*** Titled Tuesday Blitz"]
[Site "Chess.com"]
[Date "2019.08.06"]
[Round "6"]
[White "daro94"]
[Black "S-Fazulyanov"]
[Result "1-0"]
[WhiteElo "2686"]
[BlackElo "2455"]
[TimeControl "180+2"]
[EndTime "14:18:07 PDT"]
[Termination "daro94 won by resignation"]

1. Nf3 {[%clk 0:03:01.9]} 1... d5 {[%clk 0:03:00.7]} 2. b3 {[%clk 0:03:03.3]}
2... Nf6 {[%clk 0:03:01.9]} 3. Bb2 {[%clk 0:03:04.3]} 3... e6 {[%clk 0:03:03]}
4. d4 {[%clk 0:03:05.7]} 4... Bd6 {[%clk 0:03:02]} 5. e3 {[%clk 0:03:07.1]} 5...
b6 {[%clk 0:03:03.3]} 6. Nbd2 {[%clk 0:03:08.5]} 6... Bb7 {[%clk 0:03:04.6]} 7.
Bd3 {[%clk 0:03:09.4]} 7... O-O {[%clk 0:03:05.3]} 8. Ne5 {[%clk 0:03:06.2]}
8... Ne4 {[%clk 0:03:04.1]} 9. O-O {[%clk 0:02:59.4]} 9... f6 {[%clk 0:03:04]}
10. Nef3 {[%clk 0:02:55.8]} 10... c5 {[%clk 0:03:02.9]} 11. c4 {[%clk
0:02:55.9]} 11... Nd7 {[%clk 0:03:02.4]} 12. Rc1 {[%clk 0:02:51.8]} 12... Qe7
{[%clk 0:03:02.9]} 13. cxd5 {[%clk 0:02:35.5]} 13... exd5 {[%clk 0:03:03.1]} 14.
Nxe4 {[%clk 0:02:35.8]} 14... dxe4 {[%clk 0:03:02.1]} 15. Bc4+ {[%clk
0:02:37.2]} 15... Kh8 {[%clk 0:03:04]} 16. Nh4 {[%clk 0:02:38.3]} 16... g6
{[%clk 0:02:52.4]} 17. Qg4 {[%clk 0:02:29.9]} 17... cxd4 {[%clk 0:02:49.8]} 18.
exd4 {[%clk 0:02:11]} 18... f5 {[%clk 0:02:47.6]} 19. Qh3 {[%clk 0:02:08.6]}
19... Kg7 {[%clk 0:02:43.3]} 20. Be6 {[%clk 0:02:03.4]} 20... Nf6 {[%clk
0:02:34.3]} 21. d5 {[%clk 0:01:53.1]} 21... Ba3 {[%clk 0:02:10.8]} 22. Bxa3
{[%clk 0:01:50]} 22... Qxa3 {[%clk 0:02:12]} 23. Rc7+ {[%clk 0:01:51.6]} 1-0

[Event "*** Titled Tuesday Blitz"]
[Site "Chess.com"]
[Date "2019.08.06"]
[Round "6"]
[White "Parhamov"]
[Black "LuckyTiger"]
[Result "1-0"]
[WhiteElo "2957"]
[BlackElo "2674"]
[TimeControl "180+2"]
[EndTime "14:18:22 PDT"]
[Termination "Parhamov won by resignation"]

1. Nf3 {[%clk 0:03:01.9]} 1... Nf6 {[%clk 0:02:55.1]} 2. c4 {[%clk 0:03:02.7]}
2... c5 {[%clk 0:02:54.2]} 3. b3 {[%clk 0:03:03]} 3... g6 {[%clk 0:02:54.8]} 4.
Bb2 {[%clk 0:03:03.7]} 4... Bg7 {[%clk 0:02:56.7]} 5. g3 {[%clk 0:03:04.7]} 5...
b6 {[%clk 0:02:55.4]} 6. Bg2 {[%clk 0:03:05.6]} 6... Bb7 {[%clk 0:02:57]} 7. O-O
{[%clk 0:03:06.9]} 7... O-O {[%clk 0:02:58.1]} 8. d4 {[%clk 0:03:08.6]} 8...
cxd4 {[%clk 0:02:58.9]} 9. Qxd4 {[%clk 0:03:10.5]} 9... d6 {[%clk 0:02:56.1]}
10. Rd1 {[%clk 0:03:11.2]} 10... Nc6 {[%clk 0:02:51.3]} 11. Qf4 {[%clk
0:03:11.1]} 11... Rc8 {[%clk 0:02:46.1]} 12. Nc3 {[%clk 0:03:11.9]} 12... Qd7
{[%clk 0:02:33.9]} 13. Rac1 {[%clk 0:03:00.3]} 13... Rfe8 {[%clk 0:02:34.3]} 14.
Ba1 {[%clk 0:02:57]} 14... Qg4 {[%clk 0:02:32]} 15. Qd2 {[%clk 0:02:57.1]} 15...
h5 {[%clk 0:02:27.6]} 16. h3 {[%clk 0:02:57.5]} 16... Qd7 {[%clk 0:02:27.8]} 17.
e4 {[%clk 0:02:57.9]} 17... Nh7 {[%clk 0:02:14.7]} 18. Nd5 {[%clk 0:02:50.2]}
18... e6 {[%clk 0:02:13.2]} 19. Bxg7 {[%clk 0:02:49.6]} 19... Kxg7 {[%clk
0:02:15.1]} 20. Nc3 {[%clk 0:02:50.1]} 20... Red8 {[%clk 0:02:13.3]} 21. e5
{[%clk 0:02:49.3]} 21... Ne7 {[%clk 0:01:57.2]} 22. exd6 {[%clk 0:02:49.6]}
22... Nf5 {[%clk 0:01:58]} 23. Ne5 {[%clk 0:02:50.2]} 23... Qxd6 {[%clk
0:01:56.5]} 24. Qxd6 {[%clk 0:02:51]} 24... Nxd6 {[%clk 0:01:57.5]} 25. Rxd6
{[%clk 0:02:52.5]} 25... Rxd6 {[%clk 0:01:57.7]} 26. Bxb7 {[%clk 0:02:53.6]}
26... Rcd8 {[%clk 0:01:58.8]} 27. b4 {[%clk 0:02:51.1]} 27... h4 {[%clk
0:01:57.5]} 28. c5 {[%clk 0:02:48.9]} 28... bxc5 {[%clk 0:01:58.3]} 29. bxc5
{[%clk 0:02:50.1]} 29... Rd4 {[%clk 0:01:57.9]} 30. Nc6 {[%clk 0:02:50.2]} 30...
hxg3 {[%clk 0:01:56.9]} 31. fxg3 {[%clk 0:02:51]} 31... Ng5 {[%clk 0:01:53.3]}
32. Nxd8 {[%clk 0:02:50.3]} 32... Rxd8 {[%clk 0:01:53.8]} 33. c6 {[%clk
0:02:51]} 33... Nf3+ {[%clk 0:01:52.8]} 34. Kg2 {[%clk 0:02:51.9]} 34... Ne5
{[%clk 0:01:53.1]} 35. c7 {[%clk 0:02:53.2]} 1-0